bitfinex-derivatives/quotes_ETHF0:USTF0_20251008
["timestamp","ask_amount","ask_price","bid_price","bid_amount"]
[1759919227300,3.34758641,4493.9,4493.8,0.5232]
[1759919227602,3.34758641,4493.9,4493.8,0.7408]
[1759919227800,3.62748641,4493.9,4493.8,0.7408]
[1759919228100,3.62748641,4493.9,4493.8,0.5232]
[1759919229296,3.34758641,4493.9,4493.8,0.7408]
[1759919230997,3.13048641,4493.9,4493.8,0.7408]
[1759919232201,3.34758641,4493.9,4493.8,0.7408]
[1759919232405,3.62748641,4493.9,4493.8,0.7408]
[1759919232601,3.62748641,4493.9,4493.8,0.5232]
[1759919233599,3.34758641,4493.9,4493.8,0.7408]
[1759919233795,3.34758641,4493.9,4493.1,0.20758735]
[1759919233796,0.2174,4493.2,4493.1,0.20758735]
[1759919234001,0.2174,4493.2,4493.1,0.82567735]
[1759919234502,0.2174,4493.2,4493.1,1.14317735]
[1759919235306,0.4345,4493.2,4493.1,1.14317735]
[1759919235505,0.7144,4493.2,4493.1,1.14317735]
[1759919236607,0.4345,4493.2,4493.1,1.14317735]
[1759919237004,0.714,4493.2,4493.1,1.14317735]
[1759919237507,0.714,4493.2,4493.1,0.71987735]
[1759919237707,0.714,4493.2,4493.1,0.31938735]
[1759919237913,3.57521616,4493.2,4493.1,0.00188735]
[1759919239903,3.57521616,4493.2,4493.1,0.31568735]
[1759919240204,3.57521616,4493.2,4493.1,0.53008735]
[1759919240609,3.29571616,4493.2,4493.1,0.74218735]
[1759919244414,0.223,4493.3,4493.1,0.74218735]
[1759919244415,0.223,4493.3,4493.2,1.14078]
[1759919245910,3.84825347,4493.3,4493.2,0.3138]
[1759919246407,3.84825347,4493.3,4493.2,0.5282]
[1759919248915,0.40048,4493.2,4493.1,0.00188735]
[1759919249109,0.7083,4492.2,4492.1,0.3138]
[1759919249308,0.9313,4492.2,4492.1,0.3138]
[1759919249514,0.9313,4492.2,4492.1,0.5282]
[1759919250018,0.9313,4492.2,4492.1,0.53088033]
[1759919250406,3.78453357,4492.2,4492.1,0.31648033]
[1759919251014,3.78453357,4492.2,4492.1,0.53088033]
[1759919252914,3.78453357,4492.2,4492.1,0.00268033]
[1759919260718,3.78453357,4492.2,4492.1,0.55388033]
[1759919265130,3.50503357,4492.2,4492.1,0.77978033]
[1759919265433,3.50293357,4492.2,4492.1,0.77978033]
[1759919265626,3.78223357,4492.2,4492.1,0.34028033]
[1759919266631,3.78223357,4492.2,4492.1,0.00268033]
[1759919275240,4.28096453,4492.2,4492.1,0.00268033]
[1759919276145,4.28096453,4492.2,4492.1,0.31888033]
[1759919276348,4.28114545,4492.2,4492.1,0.31888033]
[1759919276548,3.78223357,4492.2,4492.1,0.53348033]
[1759919278347,4.28185922,4492.2,4492.1,0.31888033]
[1759919280750,4.28185922,4492.2,4492.1,0.53348033]
[1759919281248,4.00255922,4492.2,4492.1,0.75208033]
[1759919281750,4.28215922,4492.2,4492.1,0.75208033]
[1759919282850,4.28215922,4492.2,4492.1,0.31888033]
[1759919285954,4.28215922,4492.2,4492.1,0.00268033]
[1759919286948,4.28215922,4492.2,4492.1,0.53348033]
[1759919287348,4.28215922,4492.2,4492.1,0.75208033]
[1759919287349,3.57585922,4492.2,4492.1,0.75208033]
[1759919287651,0.223,4492.2,4492.1,5.75208033]
[1759919288944,0.9312,4492.2,4492.1,0.75208033]
[1759919289152,0.9312,4492.2,4492.1,0.00268033]
[1759919289153,4.25786203,4492.2,4492.1,0.00268033]
[1759919290754,3.85729203,4492.2,4492.1,0.00268033]
[1759919291252,3.85729203,4492.2,4492.1,0.31888033]
[1759919291449,3.37089203,4492.2,4492.1,0.75208033]
[1759919301163,3.87139203,4492.2,4492.1,0.53348033]
[1759919303263,3.87139203,4492.2,4492.1,0.31888033]
[1759919303568,3.87139203,4492.2,4492.1,0.53278033]
[1759919305764,3.87139203,4492.2,4492.1,0.31888033]
[1759919305968,3.87139203,4492.2,4492.1,0.00268033]
[1759919309671,3.87139203,4492.2,4492.1,0.55478033]
[1759919310470,3.87139203,4492.2,4492.1,0.77088033]
[1759919310471,2.92609203,4492.2,4492.1,0.77088033]
[1759919310660,3.14909203,4492.2,4492.1,0.77088033]
[1759919310867,0.4442,4492.2,4492.1,0.77088033]
[1759919311069,3.32022752,4492.2,4492.1,0.77088033]
[1759919312273,3.82072752,4492.2,4492.1,0.77088033]
[1759919313072,3.82072752,4492.2,4492.1,0.34088033]
[1759919313277,0.2789,4491.5,4491.4,0.3382]
[1759919313572,3.84775158,4491.5,4491.4,0.3382]
[1759919313969,3.96949158,4491.5,4491.2,0.3382]
[1759919314170,0.7217,4491.3,4491.2,0.34062124]
[1759919314368,0.9447,4491.3,4491.2,0.34062124]
[1759919314568,3.89726042,4491.3,4491.2,0.74128124]
[1759919314970,3.89726042,4491.3,4491.2,0.95518124]
[1759919315271,3.61836042,4491.3,4491.2,1.17128124]
[1759919317477,0.223,4491.3,4491.2,1.17128124]
[1759919324973,0.4316,4491.3,4491.2,1.17128124]
[1759919326076,0.223,4491.3,4491.2,1.17128124]
[1759919332882,0.444,4491.3,4491.2,1.17128124]
[1759919334386,0.223,4491.3,4491.2,1.17128124]
[1759919335478,0.444,4491.3,4491.2,1.17128124]
[1759919336185,0.223,4491.3,4491.2,1.17128124]
[1759919338284,0.444,4491.3,4491.2,1.17128124]
[1759919338484,3.33920145,4491.3,4491.2,1.17128124]
[1759919340386,3.84090145,4491.3,4491.2,0.55452124]
[1759919340590,3.56130145,4491.3,4491.2,0.76452124]
[1759919341087,3.33920145,4491.3,4491.2,0.76452124]
[1759919342191,3.84090145,4491.3,4491.2,0.76452124]
[1759919342488,3.56130145,4491.3,4491.2,0.76452124]
[1759919343790,3.33920145,4491.3,4491.2,0.76452124]
[1759919345992,3.56130145,4491.3,4491.2,0.76452124]
[1759919346188,3.84090145,4491.3,4491.2,0.34062124]
[1759919346388,3.84090145,4491.3,4491.2,0.55502124]
[1759919348695,3.84090145,4491.3,4491.2,0.76502124]
[1759919348887,3.56130145,4491.3,4491.2,0.76502124]
[1759919349089,3.84090145,4491.3,4491.2,0.76502124]
[1759919349382,3.84090145,4491.3,4491.2,0.34062124]
[1759919350998,3.84090145,4491.3,4491.2,0.55502124]
[1759919351196,3.56130145,4491.3,4491.2,0.76502124]
[1759919351991,3.84090145,4491.3,4491.2,0.55502124]
[1759919352496,3.56130145,4491.3,4491.2,0.76502124]
[1759919353493,3.84090145,4491.3,4491.2,0.76502124]
[1759919355495,3.56130145,4491.3,4491.2,0.76502124]
[1759919359004,3.84080145,4491.3,4491.2,0.76502124]
[1759919360907,3.84080145,4491.3,4491.2,0.34062124]
[1759919361100,3.84080145,4491.3,4491.2,0.00242124]
[1759919362900,0.4379,4490.6,4490.1,1.92577119]
[1759919363099,0.715,4490.1,4490.0,0.53336]
[1759919363302,0.2771,4490.0,4489.9,0.40077]
[1759919363503,0.4379,4490.0,4489.8,0.40078]
[1759919363711,0.938,4489.9,4489.8,0.94998]
[1759919363907,0.9407173,4489.9,4489.8,0.95285462]
[1759919364098,3.7723879,4489.9,4489.8,0.95285462]
[1759919364503,3.4952879,4489.9,4489.8,1.17315462]
[1759919366211,3.2808879,4489.9,4489.8,1.17315462]
[1759919367606,3.2808879,4489.9,4489.8,0.77237462]
[1759919367809,3.7723879,4489.9,4489.8,0.00287462]
[1759919368507,3.7723879,4489.9,4489.8,0.32797462]
[1759919369204,3.7723879,4489.9,4489.8,0.55207462]
[1759919369411,3.4952879,4489.9,4489.8,0.77237462]
[1759919371813,3.7723879,4489.9,4489.8,0.77237462]
[1759919372113,3.4952879,4489.9,4489.8,0.77237462]
[1759919372316,0.2257173,4489.9,4489.8,0.77237462]
[1759919373416,0.6636173,4489.9,4489.8,0.77237462]
[1759919374410,0.9407173,4489.9,4489.8,0.77237462]
[1759919375205,0.6636173,4489.9,4489.8,0.77237462]
[1759919376517,0.4492173,4489.9,4489.8,0.77237462]
[1759919379524,0.2257173,4489.9,4489.8,0.77237462]
[1759919382316,0.0027173,4489.9,4489.8,0.77237462]
[1759919383924,0.0027173,4489.9,4489.8,5.77237462]
[1759919389321,0.0027173,4489.9,4489.8,46.57237462]
[1759919391925,0.0027173,4489.9,4489.8,46.79537462]
[1759919392821,0.223,4490.5,4490.4,0.4364]
[1759919393015,0.223,4490.5,4490.4,1.16563]
[1759919393926,0.22545512,4490.5,4490.4,1.16563]
[1759919395922,1.05285512,4490.5,4490.0,1.72827119]
[1759919396122,0.7083,4490.1,4490.0,0.3448]
[1759919396322,0.4319,4490.1,4490.0,0.564]
[1759919396826,0.4319,4490.1,4490.0,0.8925]
[1759919399521,0.2113,4490.3,4490.2,0.83714]
[1759919399724,0.2113,4490.3,4490.2,1.16564]
[1759919400033,3.0612185,4490.3,4490.2,1.16564]
[1759919400527,3.0612185,4490.3,4490.2,0.7649]
[1759919401522,3.5582185,4490.3,4490.2,0.3285]
[1759919402320,3.5582185,4490.3,4490.2,0.5457]
[1759919402721,3.2818185,4490.3,4490.2,0.7649]
[1759919403629,2.8499185,4490.3,4490.2,0.7649]
[1759919403928,3.13694004,4490.4,4490.3,0.83714]
[1759919404131,3.13694004,4490.4,4490.3,1.16564]
[1759919404331,0.2113,4490.4,4490.3,1.16564]
[1759919404530,3.13694004,4490.4,4490.3,1.16564]
[1759919404731,3.35754004,4490.4,4490.3,0.7649]
[1759919405830,3.63394004,4490.4,4490.3,0.5457]
[1759919406035,3.63394004,4490.4,4490.3,0.3285]
[1759919406422,3.63394004,4490.4,4490.3,0.5457]
[1759919406627,3.63394004,4490.4,4490.3,0.7649]
[1759919406826,3.35754004,4490.4,4490.3,0.7649]
[1759919408037,2.92564004,4490.4,4490.3,0.7649]
[1759919408241,0.22545512,4490.5,4490.4,1.16563]
[1759919409130,0.43675512,4490.5,4490.4,1.16563]
[1759919412131,0.43675512,4490.5,4490.0,1.72827119]
[1759919412132,0.4319,4490.2,4490.1,0.72925]
[1759919412331,0.4319,4490.0,4489.9,7.30017119]
[1759919412638,0.9313,4490.0,4489.9,5.6995]
[1759919413235,3.87234857,4490.0,4489.9,5.6995]
[1759919413440,3.93594857,4490.0,4489.9,5.371]
[1759919414240,0.40077,4489.9,4489.8,0.00287462]
[1759919414440,1.10907,4489.9,4489.8,0.00287462]
[1759919414638,4.06603171,4489.9,4489.8,0.00287462]
[1759919415641,4.06603171,4489.9,4489.8,0.33137462]
[1759919415843,3.66526171,4489.9,4489.8,0.33137462]
[1759919417838,3.66526171,4489.9,4489.8,0.00287462]
[1759919424248,3.38886171,4489.9,4489.8,0.76117462]
[1759919424452,0.70245512,4490.5,4490.4,0.93533]
[1759919424750,3.75602462,4490.5,4490.4,0.93533]
[1759919425951,3.75602462,4490.5,4490.4,0.5346]
[1759919427157,0.7,4489.9,4489.8,0.00287462]
[1759919427455,3.81171227,4489.9,4489.8,0.00287462]
[1759919427756,3.81171227,4489.9,4489.8,0.31487462]
[1759919428657,3.81171227,4489.9,4489.8,0.53747462]
[1759919429063,3.53431227,4489.9,4489.8,0.76117462]
[1759919430353,3.81171227,4489.9,4489.8,0.76117462]
[1759919430554,4.21248227,4489.9,4489.8,0.76117462]
[1759919430753,3.81171227,4489.9,4489.8,0.76117462]
[1759919433659,3.81171227,4489.9,4489.8,0.00287462]
[1759919436564,4.30345288,4489.9,4489.8,0.00287462]
[1759919443666,4.30345288,4489.9,4489.8,0.33667462]
[1759919443866,4.02605288,4489.9,4489.8,0.77147462]
[1759919444163,3.32401227,4489.9,4489.8,0.77147462]
[1759919444363,3.54711227,4489.9,4489.8,0.77147462]
[1759919444565,3.82431227,4489.9,4489.8,0.00287462]
[1759919446971,0.7005,4489.2,4489.1,0.40084]
[1759919447167,0.9235,4489.2,4489.1,0.71204]
[1759919447368,3.85316409,4489.2,4489.1,0.71204]
[1759919447870,3.85316409,4489.2,4489.1,0.71429432]
[1759919448465,3.85316409,4489.2,4489.1,0.00225432]
[1759919453773,4.34493374,4489.2,4489.1,0.00225432]
[1759919454178,3.85316409,4489.2,4489.1,0.00225432]
[1759919455477,3.85316409,4489.2,4488.2,0.61772]
[1759919455478,0.2083,4488.3,4488.2,0.61772]
[1759919455675,0.6983,4488.7,4488.6,0.71209]
[1759919455877,0.9213,4488.7,4488.6,0.3112]
[1759919456082,3.8332335,4488.7,4488.6,0.3112]
[1759919456382,3.8332335,4488.7,4488.6,0.53054049]
[1759919457078,3.8332335,4488.7,4488.6,0.00254049]
[1759919457579,3.8332335,4488.7,4488.6,0.31374049]
[1759919459374,3.8332335,4488.7,4488.6,0.00254049]
[1759919459774,3.8332335,4488.7,4488.6,0.31374049]
[1759919461484,3.8332335,4488.7,4488.6,0.00254049]
[1759919462575,3.3432335,4488.7,4488.6,0.75034049]
[1759919462780,3.1349335,4488.7,4488.6,0.75034049]
[1759919463075,0.223,4488.7,4488.6,0.75034049]
[1759919465186,0.223,4488.7,4488.6,5.75034049]
[1759919465380,0.2083,4489.8,4489.7,0.7478]
[1759919465688,3.38705384,4489.8,4489.7,0.7478]
[1759919465891,3.78783384,4489.8,4489.7,0.7478]
[1759919466387,3.17875384,4489.8,4489.7,0.7478]
[1759919468383,0.223,4489.8,4489.7,0.7478]
[1759919469179,3.76020586,4489.8,4489.7,0.528]
[1759919469385,3.76020586,4489.8,4489.7,0.3112]
[1759919469686,3.48810586,4489.8,4489.7,0.7478]
[1759919470783,0.223,4489.8,4489.7,0.7478]
[1759919471382,4.27327713,4489.8,4489.7,0.528]
[1759919472983,3.87249713,4489.8,4489.7,0.528]
[1759919473190,3.60039713,4489.8,4489.7,0.7478]
[1759919474181,3.60039713,4489.8,4489.7,0.528]
[1759919474382,3.87249713,4489.8,4489.7,0.528]
[1759919474784,3.60039713,4489.8,4489.7,0.7478]
[1759919477190,3.87239713,4489.8,4489.7,0.7478]
[1759919477392,3.17419713,4489.8,4489.1,0.5363]
[1759919477688,3.38669713,4489.8,4489.7,0.7591]
[1759919478285,3.17419713,4489.8,4489.7,0.7591]
[1759919479589,0.223,4489.8,4489.7,0.7591]
[1759919479987,0.00245512,4490.5,4489.7,5.7591]
[1759919480197,0.00245512,4490.5,4490.4,1.15983]
[1759919481293,0.00245512,4490.5,4490.4,1.34276832]
[1759919482291,0.223,4490.7,4490.6,0.40071]
[1759919482589,0.81974,4491.5,4491.4,0.7591]
[1759919482789,1.31474,4491.5,4491.4,0.5454]
[1759919482990,4.2602321,4491.5,4491.4,0.5454]
[1759919483189,4.2602321,4491.5,4491.1,0.3226]
[1759919483190,0.61316,4491.2,4491.1,0.3226]
[1759919483397,1.09386517,4491.2,4491.1,0.3226]
[1759919483595,4.0126208,4491.2,4491.1,0.3226]
[1759919484092,3.6119608,4491.2,4491.1,0.3226]
[1759919484288,2.9208608,4491.2,4491.1,0.7591]
[1759919484696,3.3563608,4491.2,4491.1,0.7591]
[1759919484891,3.1438608,4491.2,4491.1,0.7591]
[1759919485095,0.272,4492.4,4491.1,5.4365]
[1759919485290,0.049,4492.3,4492.2,0.2228]
[1759919485492,0.2615,4492.3,4492.2,0.83706]
[1759919485692,0.2615,4492.3,4492.2,1.15966]
[1759919485894,3.1353674,4492.3,4492.2,1.15966]
[1759919486095,3.1353674,4492.3,4492.2,0.7591]
[1759919486300,3.13813304,4492.3,4492.2,0.76128718]
[1759919487194,2.92563304,4492.3,4492.2,0.76128718]
[1759919487995,0.05176564,4492.3,4492.2,0.76128718]
[1759919492003,0.47086564,4492.3,4492.2,0.76128718]
[1759919492203,0.74286564,4492.3,4492.2,0.76128718]
[1759919494302,0.47086564,4492.3,4492.2,0.76128718]
[1759919496004,3.65650925,4492.3,4492.2,0.00218718]
[1759919497096,3.65650925,4492.3,4492.2,0.32478718]
[1759919497305,3.38450925,4492.3,4492.2,0.76128718]
[1759919497898,3.13940925,4492.3,4492.2,0.76128718]
[1759919499695,0.22576564,4492.3,4492.2,0.76128718]
[1759919502005,0.00276564,4492.3,4492.2,0.76128718]
[1759919507802,0.81944,4493.6,4493.5,0.6847]
[1759919508003,1.12695755,4493.6,4493.5,0.6847]
[1759919508202,4.25028415,4493.6,4493.5,0.6847]
[1759919508813,4.252434,4493.6,4493.5,0.6847]
[1759919509011,1.09138,4493.2,4493.1,0.95668]
[1759919509513,3.30556291,4493.2,4493.1,1.17918]
[1759919510302,0.00214985,4493.6,4493.5,1.30765]
[1759919510913,0.21444985,4493.6,4493.5,1.30765]
[1759919511610,0.61488985,4493.6,4493.5,1.30765]
[1759919511810,0.82158985,4493.6,4493.5,1.30765]
[1759919513010,0.42114985,4493.6,4493.5,1.30765]
[1759919513408,0.90711118,4493.6,4493.5,1.30765]
[1759919513714,0.6909,4493.1,4493.0,1.08519]
[1759919514211,0.419,4493.1,4493.0,1.08519]
[1759919514707,0.419,4493.1,4492.6,0.17973583]
[1759919514708,0.40051,4492.9,4492.6,0.40053]
[1759919514909,0.40051,4492.9,4492.8,0.5562]
[1759919515109,0.81951,4492.9,4492.8,0.5562]
[1759919515303,3.70291015,4492.9,4492.8,0.5562]
[1759919515713,3.97481015,4492.9,4492.8,0.5562]
[1759919516710,3.57430015,4492.9,4492.8,0.5562]
[1759919518213,3.57430015,4492.9,4492.8,0.3286]
[1759919519715,0.6909,4492.7,4492.6,0.3286]
[1759919520112,3.5198301,4492.7,4492.6,0.5562]
[1759919520415,3.0519301,4492.7,4492.6,0.7787]
[1759919520714,0.69304985,4493.6,4493.5,0.2276]
[1759919520920,1.53090675,4493.6,4493.5,0.9072]
[1759919521214,4.39621621,4493.6,4493.5,0.9072]
[1759919521719,4.66811621,4493.6,4493.5,0.5562]
[1759919521917,4.66811621,4493.6,4493.5,0.3286]
[1759919522109,0.81949,4493.1,4493.0,0.9072]
[1759919522317,1.31439,4493.1,4493.0,0.9072]
[1759919522817,0.419,4492.6,4492.5,0.3561]
[1759919523117,0.6909,4492.6,4492.5,0.3561]
[1759919523312,0.419,4492.6,4492.5,0.5786]
[1759919523514,0.419,4492.6,4492.5,0.9072]
[1759919524220,0.419,4492.6,4492.5,1.30774]
[1759919524520,0.419,4492.6,4492.5,0.3286]
[1759919524521,0.6909,4492.6,4492.5,0.3286]
[1759919525123,3.56379742,4492.6,4492.5,0.5562]
[1759919525419,3.56379742,4492.6,4492.5,0.3286]
[1759919525622,0.6909,4492.3,4492.2,0.33078718]
[1759919526018,3.62939599,4492.3,4492.2,0.33078718]
[1759919526823,3.35749599,4492.3,4492.2,0.78088718]
[1759919527027,3.85239599,4492.3,4492.2,0.33078718]
[1759919527216,3.85239599,4492.3,4492.2,0.00218718]
[1759919528725,3.85239599,4492.3,4492.2,0.33078718]
[1759919529420,3.85239599,4492.3,4492.2,0.00218718]
[1759919530328,8.85239599,4492.3,4492.2,0.00218718]
[1759919530827,0.6909,4491.4,4491.2,0.3286]
[1759919531021,0.1191,4492.0,4491.2,0.5562]
[1759919531022,0.9139,4491.3,4491.2,0.5562]
[1759919531232,3.86286018,4491.3,4491.2,0.5562]
[1759919531525,0.9139,4491.3,4491.2,0.5562]
[1759919531726,3.86925744,4491.3,4491.2,0.5562]
[1759919531926,3.86925744,4491.3,4491.2,0.33091863]
[1759919532124,3.86925744,4491.3,4491.2,0.00231863]
[1759919533127,3.86925744,4491.3,4491.2,0.33091863]
[1759919533430,3.39065744,4491.3,4491.2,0.78101863]
[1759919534033,3.59735744,4491.3,4491.2,0.78101863]
[1759919539727,3.86945744,4491.3,4491.2,0.00231863]
[1759919540134,3.86945744,4491.3,4491.2,0.33221863]
[1759919540941,3.86945744,4491.3,4491.2,0.54121863]
[1759919541442,3.59735744,4491.3,4491.2,0.74801863]
[1759919542940,3.39065744,4491.3,4491.2,0.74801863]
[1759919543142,3.17835744,4491.3,4491.2,0.74801863]
[1759919549344,0.7037,4492.2,4492.1,0.40058]
[1759919549545,1.05517,4492.2,4492.1,0.7457]
[1759919549741,4.17366215,4492.2,4492.1,0.5389]
[1759919550143,1.1043,4491.8,4491.7,0.3299]
[1759919550449,1.1043,4491.8,4491.0,0.1257]
[1759919550450,1.10435,4491.4,4491.3,0.3299]
[1759919550649,1.32735,4491.4,4490.8,0.40069]
[1759919550843,4.2650343,4491.4,4490.8,0.40069]
[1759919551546,9.2650343,4491.4,4490.7,0.3299]
[1759919551748,0.7037,4490.4,4490.3,0.209]
[1759919552056,0.7037,4490.3,4490.2,0.40075]
[1759919552247,0.7037,4490.3,4490.2,0.73065]
[1759919552552,3.55661033,4490.3,4490.2,0.93965]
[1759919552849,3.55914591,4490.3,4490.2,0.94172992]
[1759919553246,3.55914591,4490.3,4490.2,0.54097992]
[1759919553447,3.55914591,4490.3,4490.2,0.00207992]
[1759919554452,3.28704591,4490.3,4490.2,0.54097992]
[1759919554949,2.85544591,4490.3,4490.2,0.74777992]
[1759919555947,3.28704591,4490.3,4490.2,0.74777992]
[1759919556650,2.85544591,4490.3,4490.2,0.74777992]
[1759919557054,3.06164591,4490.3,4490.2,0.74777992]
[1759919560845,2.85544591,4490.3,4490.2,0.74777992]
[1759919563256,0.00253558,4490.3,4490.2,0.74777992]
[1759919564159,0.22833558,4490.3,4490.2,0.74777992]
[1759919564659,3.63844749,4490.3,4490.2,0.33197992]
[1759919564850,3.63844749,4490.3,4490.2,0.00207992]
[1759919570462,3.63844749,4490.3,4490.2,0.33027992]
[1759919570660,3.63844749,4490.3,4490.2,0.00207992]
[1759919573066,3.58944749,4490.3,4490.2,0.76137992]
[1759919577872,0.00253558,4490.3,4490.2,0.76137992]
[1759919578066,0.22553558,4490.3,4490.2,0.76137992]
[1759919578670,0.65423558,4490.3,4490.2,0.76137992]
[1759919579369,3.84128768,4490.3,4490.2,0.76137992]
[1759919579966,3.84128768,4490.3,4490.2,0.00207992]
[1759919581771,3.14048768,4490.3,4490.2,1.16212992]
[1759919582066,0.22553558,4490.3,4490.2,1.16212992]
[1759919583565,3.82444743,4490.3,4490.2,0.00207992]
[1759919584073,3.82444743,4490.3,4490.2,0.33027992]
[1759919585068,3.82444743,4490.3,4490.2,0.00207992]
[1759919585368,3.82444743,4490.3,4490.2,0.33027992]
[1759919586074,3.82444743,4490.3,4490.2,0.54417992]
[1759919586378,3.55234743,4490.3,4490.2,0.76137992]
[1759919586876,3.12364743,4490.3,4490.2,0.76137992]
[1759919587076,0.22553558,4490.3,4490.2,0.76137992]
[1759919587571,1.18991974,4491.8,4491.3,0.2139]
[1759919587572,34.9487,4491.4,4491.3,0.2139]
[1759919587768,35.1717,4491.4,4491.3,0.4311]
[1759919587973,38.31953808,4491.4,4491.3,0.7593]
[1759919588567,38.32125424,4491.4,4491.3,0.7593]
[1759919589172,0.2067,4490.7,4490.6,0.94281]
[1759919589371,0.223,4490.9,4490.8,0.40069]
[1759919589666,0.223,4490.9,4490.8,1.15999]
[1759919590876,0.00171616,4491.4,4491.3,0.40065]
[1759919591178,0.00171616,4491.4,4491.3,1.15995]
[1759919591575,0.00171616,4491.4,4491.3,6.15995]
[1759919591778,0.00171616,4491.4,4491.3,7.7570773]
[1759919592074,34.75,4492.9,4492.5,0.1234]
[1759919592371,3.28316558,4492.6,4492.5,0.8827]
[1759919592577,0.4287,4492.6,4492.5,0.8827]
[1759919593078,2.85630461,4492.6,4492.5,0.8827]
[1759919593278,0.22483903,4492.6,4492.5,0.8827]
[1759919594871,0.43153903,4492.6,4492.5,0.8827]
[1759919595072,3.79616788,4492.6,4492.5,0.3282]
[1759919595279,3.52406788,4492.6,4492.5,0.8827]
[1759919596685,3.09536788,4492.6,4492.5,0.8738]
[1759919596977,3.31326788,4492.6,4492.5,0.8738]
[1759919597177,3.09536788,4492.6,4492.5,0.8738]
[1759919597682,0.22483903,4492.6,4492.5,0.8738]
[1759919597976,0.00183903,4492.6,4492.5,0.8738]
[1759919598175,0.21973903,4492.6,4492.5,0.8738]
[1759919598781,0.00183903,4492.6,4492.5,0.8738]
[1759919600477,0.21973903,4492.6,4492.5,0.8738]
[1759919600682,0.42543903,4492.6,4492.5,0.8738]
[1759919601074,0.00183903,4492.6,4492.5,0.8738]
[1759919602283,0.82404,4493.8,4493.7,0.2195]
[1759919602474,1.04704,4493.8,4493.7,0.5273]
[1759919602680,3.58237185,4493.8,4493.7,0.5273]
[1759919603179,3.85477185,4493.8,4493.7,0.5273]
[1759919603373,3.85762766,4493.8,4493.7,0.5294824]
[1759919604980,3.85762766,4493.8,4493.7,0.3099824]
[1759919605784,3.85762766,4493.8,4493.7,0.0021824]
[1759919605990,3.85762766,4493.8,4493.7,0.5294824]
[1759919606188,3.85762766,4493.8,4493.7,0.3099824]
[1759919606591,3.85762766,4493.8,4493.7,0.5294824]
[1759919606885,3.85762766,4493.8,4493.7,0.3099824]
[1759919608090,3.85762766,4493.8,4493.7,0.5294824]
[1759919608290,3.58522766,4493.8,4493.7,0.7377824]
[1759919609193,3.85762766,4493.8,4493.7,0.7377824]
[1759919609892,3.85762766,4493.8,4493.7,0.5294824]
[1759919610192,3.85762766,4493.8,4493.7,0.3099824]
[1759919610692,3.85762766,4493.8,4493.7,0.5294824]
[1759919613288,0.00285581,4493.8,4493.7,0.7377824]
[1759919613595,0.82393,4494.9,4494.8,0.2195]
[1759919613795,1.32033,4494.9,4494.8,0.5273]
[1759919613987,4.17634436,4494.9,4494.8,0.5273]
[1759919614291,4.17634436,4494.9,4494.8,0.3078]
[1759919614493,4.1787531,4494.9,4494.8,0.3078]
[1759919614994,4.1787531,4494.9,4494.5,0.1335]
[1759919614995,0.82396,4494.6,4494.5,0.6608]
[1759919615192,1.32036,4494.6,4494.5,0.6608]
[1759919615390,1.32036,4494.6,4494.0,0.3078]
[1759919615391,0.696,4494.1,4494.0,0.3078]
[1759919615693,3.82792042,4494.1,4494.0,0.3078]
[1759919616289,3.55552042,4494.1,4494.0,0.8691]
[1759919618999,3.82792042,4494.1,4494.0,0.8691]
[1759919619296,0.40042,4494.0,4493.7,0.2216824]
[1759919619595,0.4236,4493.8,4493.7,0.7377824]
[1759919619791,3.38646655,4493.9,4493.8,0.7356]
[1759919619995,0.4419,4493.9,4493.8,0.7356]
[1759919620195,3.38646655,4493.9,4493.8,0.7356]
[1759919620395,3.59216655,4493.9,4493.8,0.7356]
[1759919623096,3.86416655,4493.9,4493.8,0.7356]
[1759919623401,3.59216655,4493.9,4493.8,0.7356]
[1759919624496,1.10193,4493.8,4493.7,0.0021824]
[1759919625000,3.9578157,4493.8,4493.7,0.0021824]
[1759919625196,4.44863244,4493.8,4493.7,0.0021824]
[1759919625396,4.44863973,4493.8,4493.7,0.0021824]
[1759919627096,3.9578157,4493.8,4493.7,0.0021824]
[1759919629202,4.44888917,4493.8,4493.7,0.0021824]
[1759919630104,4.44898175,4493.8,4493.7,0.0021824]
[1759919638009,4.44898175,4493.8,4493.7,0.3352824]
[1759919639008,4.44898175,4493.8,4493.7,0.0021824]
[1759919640020,4.44898175,4493.8,4493.7,0.5561824]
[1759919640021,4.27255175,4493.8,4493.7,0.5561824]
[1759919640309,3.56935175,4493.8,4493.7,0.7663824]
[1759919640613,3.3021857,4493.8,4493.7,0.7663824]
[1759919640810,3.0798857,4493.8,4493.7,0.7663824]
[1759919641607,3.3029857,4493.8,4493.7,0.7663824]
[1759919641802,3.5178857,4493.8,4493.7,0.7663824]
[1759919643604,35.12635,4494.7,4493.8,0.40043]
[1759919643813,35.12635,4494.7,4493.7,0.7663824]
[1759919643814,1.4246638,4494.6,4494.5,0.4689]
[1759919644013,4.34511006,4494.6,4494.5,0.4689]
[1759919644911,4.34511006,4494.6,4494.5,0.3331]
[1759919646110,3.63501006,4494.6,4494.2,0.3331]
[1759919646316,0.83838,4494.3,4494.2,0.3331]
[1759919646516,0.7101,4494.1,4494.0,0.4689]
[1759919646816,0.9341,4494.1,4494.0,0.4689]
[1759919647210,0.9341,4494.1,4494.0,0.6898]
[1759919647509,0.4471,4494.1,4494.0,0.9]
[1759919647921,0.9341,4494.1,4494.0,0.4689]
[1759919648113,0.9341,4494.1,4494.0,0.6898]
[1759919648516,0.7101,4493.8,4493.7,0.2230824]
[1759919648713,0.9341,4493.8,4493.7,0.2230824]
[1759919648914,3.85208819,4493.8,4493.7,0.2230824]
[1759919649116,3.85208819,4493.8,4493.7,0.5561824]
[1759919649325,3.57998819,4493.8,4493.7,0.5561824]
[1759919649711,3.57998819,4493.8,4493.7,0.7663824]
[1759919651820,3.85208819,4493.8,4493.7,0.5561824]
[1759919652422,3.85208819,4493.8,4493.7,0.0021824]
[1759919652721,3.85208819,4493.8,4493.7,0.3352824]
[1759919652909,3.85208819,4493.8,4493.7,0.5561824]
[1759919653323,3.57998819,4493.8,4493.7,0.7663824]
[1759919654024,3.85208819,4493.8,4493.7,0.7663824]
[1759919655524,3.85208819,4493.8,4493.7,0.5561824]
[1759919656128,3.57998819,4493.8,4493.7,0.5561824]
[1759919656325,3.57998819,4493.8,4493.7,0.7663824]
[1759919656720,3.85218819,4493.8,4493.7,0.7663824]
[1759919659636,3.57998819,4493.8,4493.7,0.7663824]
[1759919660027,0.224,4493.8,4493.7,0.7663824]
[1759919660832,0.224,4493.8,4493.7,5.7663824]